Workbook

Sheet Cover Page
D1: Add company logo
N2: Version 20.1
B8: Add photo
N13: Notes:
N14: This template may require adjustments by individual operators to meet specific reporting requirements as defined in the site Permit(s)
B29: Annual Performance Report 2021
B31: Permit EPR/ UP3005LJ
B33: Ardley Energy Recovery Facility
B37: VIRIDOR OXFORDSHIRE LIMITED
B39: Year: | C39: 2021
B41: Address: | C41: Ardley ERF, Middleton Stoney Road, Ardley, Oxon, OX27 7AA
B43: Tel: | C43: 07788178544
B45: Email: | C45: HEdwards1@viridor.co.uk
B47: Prepared by: | C47: Helen Edwards | F47: Position: | G47: EHS Manager
B49: Approved by: | C49: Alan Beaumont | F49: Position: | G49: Plant Manager
B51: Version: | C51: 1
B53: Issue Date: | C53: 2022-01-31

Sheet Contents
A1: =+'Cover Page'!$B$29 -> Annual Performance Report 2021 | E1: =+'Cover Page'!$B$33 -> Ardley Energy Recovery Facility
A3: Contents | K3: Notes:
A4: Section | B4: Subject | H4: Page | K4: Section references and Page nos. to be inserted
B5: Facility Information | H5: 3 | K5: Sections and Subjects may require adjustment by individual operators to meet specific reporting requirements as defined in the sites Permit(s)
B6: Operational Summary | H6: 5
A7: 4.2.2(b)(c ) | B7: Operational Data | H7: 4
A8: 4.2.2(b)(c ) | B8: Performance Form 1 | H8: 6
A9: 4.2.2(b)(c ) | B9: Energy Form 1 | H9: 7
B10: Permit Compliance | H10: 8
B11: Improvements | H11: 9
B12: Public Liaison | H12: 10
A13: 4.2.3 (a) | B13: Residue Quality - Optional | H13: 11
A14: 4.2.3 | B14: Emissions to Water | H14: 12
A15: 4.2.3 | B15: Emissions to Air (periodically monitored) | H15: 13
A16: 4.2.3 | B16: Emissions to Air (continuously monitored) | H16: 14
B17: Hydrogen Chloride emissions | H17: 15
B18: Sulphur Dioxide emissions | H18: 16
B19: Oxides of Nitrogen emissions | H19: 17
B20: Total Organic Carbon emissions | H20: 18
B21: Particulate Matter emissions | H21: 19
B22: Carbon Monoxide emissions | H22: 20
A25: Version Control
A26: Section | B26: Information | H26: Date
A33: Distribution
A34: Copy | B34: Name, Role | H34: No.
A43: This report is required under the Industrial Emissions Directive’s Article 55(2) requirements on reporting and public information on waste incineration plants and co-incineration plants, which require the operator to produce an annual report on the functioning and monitoring of the plant and make it available to the public.

Sheet Facility Info
A1: =+'Cover Page'!$B$29 -> Annual Performance Report 2021 | E1: =+'Cover Page'!$B$33 -> Ardley Energy Recovery Facility
A3: Plant Description and Design | K3: Notes:
A5: Ardley Energy from Waste (EFW) facility is located close to junction 10 of the M40. The facility has a design capacity to process 300,000 tonnes per year of residual municipal waste and has the capability of exporting 26.9MW of electricity. In accordance with the requirements of Condition 4.2.3, Schedule 4 and Table S5.1 of Permit EPR/UP3005LJ issued by Environment Agency to Viridor Oxfordshire Limited (Viridor) on 18th December 2020 (previously EPR/FP3134GU issued 29 September 2010), Viridor is required to submit a summary of the environmental monitoring works undertaken at the site on a quarterly basis. Such reports will form the basis of the annual environmental review report, which is to be submitted to the Environment Agency by 31 March as agreed in writing with the Environment Agency of each year in accordance with Condition 4.2.2 of the Permit. Viridor note, in line with Permit variation dated 21 April 2015; 30 minute carbon monoxide (CO) average monitoring was replaced with CO 10 minute average monitoring. This report summarises the environmental and performance data collected at the site 1st January – 31st December 2021 and fulfils the requirement of Chapter IV Article 55(2) of the Industrial Emissions Directive. | K5: Include summary of plant design, design capacity, no. of combustion lines, electrical and heat capacity and any other general information that describes the facility, its location and purpose
A20: Summary of Operational Processes and Procedures
A22: Incoming waste is mainly received Oxfordshire County Council Waste Partnership, the rest is received from third party businesses. Waste is received into an enclosed waste bunker. The waste is loaded into one of two furnaces, which combust the waste at >850°C. The hot gases are put through a variety of heat exchangers used to heat demineralised water to create superheated steam which drives a turbine generator. The turbine generator produces around 30MWh and exports around 26MWh. Combusted waste (incinerator bottom ash) is sent to a third party within the footprint of the facility for further processing. The gasses are treated with Lime, Activated Carbon and Urea to remove potential pollution leaving the stack. The powder containing reacted gas particulates (APCr) is removed and sent via a third party for reprocessing. Emissions are monitored via Continuous Emissions Monitoring equipment (CEMs) provided by A1-CBISS. | K22: Include summary of key processes and procedures such as (but not limited to); waste reception, control rooms, grate, bed and boiler, energy & heat generation, cooling systems, residue management, emission controls, health and safety systems, maintenance

Sheet Operational Data
A1: =+'Cover Page'!$B$29 -> Annual Performance Report 2021 | E1: =+'Cover Page'!$B$33 -> Ardley Energy Recovery Facility
A3: Operational Data | K3: Notes:
A4: Plant Size | B4: 326300 | D4: tonnes pa | F4: MWth | G4: 27 | H4: MWe | K4: * - RDF to include SRF
A5: No. of combustion lines | B5: 2 | D5: No. of Turbines: | F5: 1 | K5: ** - CHP plants only
K6: 2020 updates include; heat in MWh, water in Litres, NCV in MJ/kg
A7: Waste types received | B7: Unit | C7: Q1 | D7: Q2 | E7: Q3 | F7: Q4 | G7: Year Total | H7: %
A8: Household / Local Authority | B8: tonnes | C8: 55797.88 | D8: 54579.77 | E8: 53505.12 | F8: 62629.4 | G8: =SUM(C8:F8) -> 226512.17 | H8: =IF(G8>0,G8/$G$18,"-") -> 0.6791418878 | K8: Availability Definition: 'the availability of a line is to be calculated by the number of hours the line reported Continuously Monitored emission levels to the Regulator through the calendar year divided by the total number of hours in that year. The overall plant availability is calculated as the Mean of all lines in the plant. For clarity this includes periods of Other Than Normal Operating Conditions (OTNOC) and abnormal operation.' Rationale: The primary function of an Energy from Waste facility is the disposal of waste. It follows therefore that the availability of a plant is determined by the period of time a facility spends undertaking this activity.
A9: Commercial & Industrial | C9: 25709.05 | D9: 26754.64 | E9: 31008.74 | F9: 23542.42 | G9: =SUM(C9:F9) -> 107014.85 | H9: 0.3208581122
A10: Hazardous | C10: - | D10: - | E10: - | F10: - | G10: 0 | H10: -
A11: Clinical | C11: - | D11: - | E11: - | F11: - | G11: 0 | H11: -
A12: Waste wood (biomass) | C12: - | D12: - | E12: - | F12: - | G12: 0 | H12: -
A13: Refuse Derived Fuel * - H'hold/LA | C13: - | D13: - | E13: - | F13: - | G13: =SUM(C13:F13) -> 0 | H13: -
A14: Refuse Derived Fuel * - C&I | C14: - | D14: - | E14: - | F14: - | G14: 0 | H14: -
A15: Other [Please specify] | C15: - | D15: - | E15: - | F15: - | G15: 0 | H15: -
A16: Other [Please specify] | C16: - | D16: - | E16: - | F16: -
A17: Other [Please specify] | C17: - | D17: - | E17: - | F17: -
A18: Total waste received | C18: =SUM(C8:C17) -> 81506.93 | D18: =SUM(D8:D17) -> 81334.41 | E18: =SUM(E8:E17) -> 84513.86 | F18: =SUM(F8:F17) -> 86171.82 | G18: =SUM(G8:G17) -> 333527.02 | H18: =IF(G18>0,G18/$G$18,"-") -> 1
A19: Rejected Waste | C19: 0 | D19: 0 | E19: 0 | F19: 0 | G19: =SUM(C19:F19) -> 0 | H19: =IF(G19>0,G19/$G$18,"-") -> -
A20: Unprocessed waste transferred out | C20: - | D20: - | E20: - | F20: - | G20: =SUM(C20:F20) -> 0 | H20: =IF(G20>0,G20/$G$18,"-") -> -
A21: Total waste combusted | C21: 77865.3 | D21: 78051.24 | E21: 79346.06 | F21: 78570.64 | G21: =SUM(C21:F21) -> 313833.24 | H21: =IF(G21>0,G21/$G$18,"-") -> 0.9409529699
A22: NOTE: Total recieved line (as per template calculation) is total available for combustion
A23: Total waste combusted above is actual weights as recorded by the cranes and DCS from feeding the boiler (quarterly calibrated).
A25: Energy Usage / Export | B25: Unit | C25: Q1 | D25: Q2 | E25: Q3 | F25: Q4 | G25: Year Total | H25: KWh/te
A26: Power Generated | B26: MWh | C26: 62648 | D26: 63966 | E26: 64264 | F26: 62463 | G26: =SUM(C26:F26) -> 253341 | H26: =IF(G26>0,G26*1000/$G$21,"-") -> 807.2471864
A27: Power Exported | C27: 55942 | D27: 57118 | E27: 57057 | F27: 55337 | G27: =SUM(C27:F27) -> 225454 | H27: =IF(G27>0,G27*1000/$G$21,"-") -> 718.3878929
A28: Power Used on site | C28: 6708 | D28: 6851 | E28: 7208 | F28: 7134 | G28: =SUM(C28:F28) -> 27901 | H28: =IF(G28>0,G28*1000/$G$21,"-") -> 88.90390323
A29: Power Imported | C29: 2 | D29: 3 | E29: 1 | F29: 8 | G29: 14 | H29: =IF(G29>0,G29*1000/$G$21,"-") -> 0.04460967869
A30: Parasitic Load | B30: % | C30: =IF(C26>0,1-C27/(C26+C29),"-") -> 0.1070710295 | D30: =IF(D26>0,1-D27/(D26+D29),"-") -> 0.107098751 | E30: 0.1121605851 | F30: 0.1141969874 | G30: 0.1101261076
A31: Thermal Energy Produced ** | B31: MWh | C31: - | D31: - | E31: - | F31: - | G31: =SUM(C31:F31) -> 0 | H31: =IF(G31>0,G31*1000/$G$21,"-") -> -
A32: Thermal Energy Exported ** | C32: - | D32: - | E32: - | F32: - | G32: 0 | H32: =IF(G32>0,G32*1000/$G$21,"-") -> -
A33: R1 value | C33: Subject to confirmation | G33: Operational
A35: Waste Disposal & Recovery | B35: Unit | C35: Q1 | D35: Q2 | E35: Q3 | F35: Q4 | G35: Year Total | H35: % inputs
A36: APC Residues - produced | B36: tonnes | C36: 1871 | D36: 1928.38 | E36: 1719.39 | F36: 1708.86 | G36: =SUM(C36:F36) -> 7227.63 | H36: =IF(G36>0,G36/$G$21,"-") -> 0.02303016086
A37: IBA - produced | C37: 13979 | D37: 17322 | E37: 18496 | F37: 17971.5 | G37: 67768.5 | H37: =IF(G37>0,G37/$G$21,"-") -> 0.2159379293
A38: Metals recycling | C38: 1750.06 | D38: 1547 | E38: 1566.39 | F38: 1291.58 | G38: =SUM(C38:F38) -> 6155.03 | H38: =IF(G38>0,G38/$G$21,"-") -> 0.01961242219
A40: Raw Material Usage | B40: Unit | C40: Q1 | D40: Q2 | E40: Q3 | F40: Q4 | G40: Year Total | H40: kg or Ltr /te
A41: Mains Water | B41: ltrs | C41: 7045000 | D41: 7815000 | E41: 7593000 | F41: 8340000 | G41: =SUM(C41:F41) -> 30793000 | H41: =IF(G41>0,G41/$G$21,"-") -> 98.11898829
A42: Other Water | B42: ltrs | C42: - | D42: - | E42: - | G42: 0 | H42: -
A43: Urea | B43: kgs | C43: 93000 | D43: 91000 | E43: 94000 | F43: 119000 | G43: =SUM(C43:F43) -> 397000 | H43: 1.265003032
A44: Activated Carbon | B44: kgs | C44: 19910 | D44: 20880 | E44: 19570 | F44: 18020 | G44: 78380 | H44: 0.2497504726
A45: Lime / hydrated lime | B45: kgs | C45: 1039360 | D45: 1138550 | E45: 951260 | F45: 882520 | G45: 4011690 | H45: 12.78287157
A46: Fuel oil | B46: ltrs | C46: 18963.5 | D46: 22118 | E46: 68901 | F46: 80237 | G46: 190219.5 | H46: 0.606116484
A47: Gas | B47: cf | C47: 0 | D47: 0 | E47: 0 | F47: 0 | G47: 0 | H47: -
A49: Summary | B49: Line/Unit | C49: Q1 | D49: Q2 | E49: Q3 | F49: Q4 | G49: Year Total | J49: Hrs in year
A50: Availability of waste combustion by line, hrs | B50: 1 | C50: 2159.5 | D50: 2184 | E50: 2162.5 | F50: 2109.75 | G50: =SUM(C50:F50) -> 8615.75 | H50: =(G50/J50) -> 0.983533105 | J50: 8760
B51: 2 | C51: 2158 | D51: 2176.5 | E51: 2199.5 | F51: 2089 | G51: 8623 | H51: =(G51/J50) -> 0.9843607306
A52: Overall Availability, mean avg. of all lines, hrs | C52: =AVERAGE(C50:C51) -> 2158.75 | D52: =AVERAGE(D50:D51) -> 2180.25 | E52: =AVERAGE(E50:E51) -> 2181 | F52: =AVERAGE(F50:F51) -> 2099.375 | G52: =AVERAGE(G50:G51) -> 8619.375 | H52: =(G52/J50) -> 0.9839469178
A53: Hours of turbine operations, hrs | B53: 1 | C53: 2159.25 | D53: 2183 | E53: 2207.25 | F53: 2202.5 | G53: 8752 | H53: =(G53/J50) -> 0.999086758
A54: Hours of heat / steam export | C54: - | D54: - | E54: - | F54: - | G54: 0 | H54: =IF(B54>0,#REF!/J50,"n/a") -> n/a
A55: Net Calorific Value of waste | B55: MJ/kg | C55: 10.47 | D55: 10.57 | E55: 10.56 | F55: 10.45 | H55: -
A56: Abnormal Events | B56: qty. | C56: 0 | D56: 0 | E56: 0 | F56: 0 | G56: 0 | H56: =IF(G56>0,"yes","no") -> no
A57: Abnormal operation | B57: hours | C57: 0 | D57: 0 | E57: 0 | F57: 0 | G57: 0 | H57: =+(G57)/J50 -> 0
A58: Permit Breaches | B58: qty. | C58: 0 | D58: 1 | F58: 0 | G58: 1 | H58: =IF(G58>0,"yes","no") -> yes

Sheet Operational Summary
A1: =+'Cover Page'!$B$29 -> Annual Performance Report 2021 | E1: =+'Cover Page'!$B$33 -> Ardley Energy Recovery Facility
A3: Summary of Plant Operations and Maintenance during the reporting year | K3: Notes:
A5: The plant operated steadily throughout the year of 2021 with 281 hrs off burning waste across both lines including one short maintenance period on each line. No annual shutdown period for maintenance was conducted in 2021. The last maintenance outage commenced on 11th October 2020 concluding on 10th November 2020. The site has now moved to an 18-month outage schedule. The next shutdown, during which the plant combustion systems, FGT and ancillary systems will undergo checks, repair as required and legal compliance inspections under PSSR, will commence on the 4th April 2022. During 2021, the site conducted a trial to operate at 105% Maximum Continuous Rating (MCR) of the original design heat release as defined by the Firing Diagram. The trial began in July 2021 and was completed in November with the assistance of CNIM who designed and built the facility. The total waste received figure reported under operational data is the total amount of waste available for combustion, the total waste combusted figure is actual weights as recorded by the cranes and DCS feeding each line. The waste cranes are calibrated quarterly. The combined impact of improved availability of the boilers from previous improvement projects, the 18-month outage schedule and the MCR increase trial, the site has processed waste volumes greater than previously achieved over the annual period. Leading up to the pattern of weekend and bank holidays over the 2021 Christmas and New Year periods, the site increased bunker levels to ensure that combustion could be maintained without support from the burners. This is reflected in the waste accepted figure. The discrepancy between the two figures may be attributed to the bunker storage levels at the end of each reporting period, moisture loss through evaporation during mixing and the difference in calibration accuracy between the weighbridge and crane load cells. The Net CV reported is a calculated value from the DCS. In July the plant successfully underwent a continuation audit for ISO50001. The CEMS underwent QAL2 calibration checks in July 2021 and the calibration factors were applied. | K5: Include summary of key operational and/or maintenance activity undertaken in the year, such as any major component upgrades and/or replacements
A32: Summary of Residue Handling for the reporting year
A34: All IBA produced on site (including the metal content) is conveyed to the Fortis IBA facility, based within the footprint of Ardley ERF, for reprocessing. They remove and recycle the ferrous and non-ferrous metals and then create IBAA (Incinerator Bottom Ash Aggregate) from the remaining material. Their Aggregates team then utilise this in various construction and highways projects. There have been no hazardous results from IBA testing in 2021. APCr is collected by direct transfer from the on-site silo into transport tanker by Grundons and goes to one of three reprocesses or for disposal. APCr to the O.C.O Technology Ltd (formally Carbon8) site at Brandon (EPR/JP3332FK), Anonmouth (EPR/HP3638WW), or Leeds (EPR/TP3737YG) is taken through their accelerated carbonation technology. These carbonated wastes are blended with binders and fillers and pelletised to form an aggregate. APCr sent to Grundon APCr plant at Wingmoor Farm landfill site, Gloucestershire (EPR/NP3831ST) is mixed with water before it is transferred to a hazardous waste cell in the landfill.

Sheet Perf. Form 1
A1: =+'Cover Page'!C39 -> 2021 | B1: Annual Reporting Performance Form 1
A3: =+'Cover Page'!B31 -> Permit EPR/ UP3005LJ | F3: Operator: | G3: VIRIDOR OXFORDSHIRE LIMITED
A4: Facility: | B4: =+'Cover Page'!B33:I33 -> Ardley Energy Recovery Facility | F4: Form: | G4: Performance 1
A6: Reporting Period from: | D6: 2021-01-01 | F6: to: | G6: 2021-12-31
A8: =+A1 -> 2021 | B8: Annual Reporting of Waste Disposal and Recovery
A9: Waste Description | C9: Disposal Route(s) | E9: Disposal Tonnes | G9: Recovery Tonnes | I9: % / tonne of waste incinerated
A10: 1) Hazardous Wastes
A11: APC Residues | C11: OCO Technology | G11: 5956.18 | I11: =IF((E11+G11)>0,(E11+G11)/'Operational Data'!$G$21, "-") -> 0.01897880543
A12: APC Residues | C12: Grundon | E12: 1272.36 | I12: =IF((E12+G12)>0,(E12+G12)/'Operational Data'!$G$21, "-") -> 0.004054255056
I13: =IF((E13+G13)>0,(E13+G13)/'Operational Data'!$G$21, "-") -> -
I14: =IF((E14+G14)>0,(E14+G14)/'Operational Data'!$G$21, "-") -> -
A15: Total Hazardous Waste | E15: =SUM(E11:F14) -> 1272.36 | G15: =SUM(G11:H14) -> 5956.18 | I15: =IF((E15+G15)>0,(E15+G15)/'Operational Data'!$G$21, "-") -> 0.02303306049
A17: 2) Non-Hazardous Wastes
A18: IBA | C18: Fortis IBA | G18: ='Operational Data'!G37 -> 67768.5 | I18: =IF((E18+G18)>0,(E18+G18)/'Operational Data'!$G$21, "-") -> 0.2159379293
A19: Ferrous Metal | C19: VRM | G19: ='Operational Data'!G38 -> 6155.03 | I19: =IF((E19+G19)>0,(E19+G19)/'Operational Data'!$G$21, "-") -> 0.01961242219
A20: Total Non-Hazardous Waste | E20: =SUM(E18:F19) -> 0 | G20: =SUM(G18:H19) -> 73923.53 | I20: =IF((E20+G20)>0,(E20+G20)/'Operational Data'!$G$21, "-") -> 0.2355503515
A21: TOTAL WASTE | E21: =+E20+E15 -> 1272.36 | G21: =+G20+G15 -> 79879.71 | I21: =IF((E21+G21)>0,(E21+G21)/'Operational Data'!$G$21, "-") -> 0.258583412
A23: Operator’s comments :
A24: All IBA produced on site (including the metal content) is reprocessed by Fortis IBA who separate the ferrous and non-ferrous metals to return to Ardley ERF ownership and create IBAA (Incinerator Bottom Ash Aggregate) from the remaining material. Oversize metals returned to Ardley ERF ownership are managed through Viridor Resource Management for recycling. APCr is taken either through OCO Technologies accelerated carbonation technology where carbonated wastes are blended with binders and fillers and pelletised to form an aggregate, or are sent to Hazardous waste landfill.
A28: =+A1 -> 2021 | B28: Annual Reporting of Water and Other Raw Material Usage
A29: Raw Material | E29: Usage | G29: Unit | H29: Specific Usage | J29: Unit
A30: Mains Water | E30: =+'Operational Data'!G41/1000 -> 30793 | G30: m3 | H30: =IF(E30>0,E30/'Operational Data'!$G$21,"-") -> 0.09811898829 | J30: m3/te
A31: Total Water | E31: =+'Operational Data'!G42+'Operational Data'!G41/1000 -> 30793 | G31: m3 | H31: =IF(E31>0,E31/'Operational Data'!$G$21,"-") -> 0.09811898829 | J31: m3/te
A32: Urea / Ammonia | E32: =+'Operational Data'!G43 -> 397000 | G32: kg | H32: =IF(E32>0,E32/'Operational Data'!$G$21,"-") -> 1.265003032 | J32: kg/te
A33: Activated Carbon | E33: =+'Operational Data'!G44 -> 78380 | G33: kg | H33: =IF(E33>0,E33/'Operational Data'!$G$21,"-") -> 0.2497504726 | J33: kg/te
A34: Lime / hydrated lime / Sodium Bicarb. | E34: =+'Operational Data'!G45 -> 4011690 | G34: kg | H34: =IF(E34>0,E34/'Operational Data'!$G$21,"-") -> 12.78287157 | J34: kg/te
A36: Operator’s comments :
A37: Water reported in litres in operational data, converted to m3 for specific usage
A40: =+A28 -> 2021 | B40: Annual Reporting of other performance indicators
A41: Parameter | C41: Results by Line
C42: A1 | D42: A2 | E42: A3 | F42: A4 | G42: A5 | I42: Turbine 1 | J42: Turbine 2
A43: Operating hours for the year, hours | C43: ='Operational Data'!G50 -> 8615.75 | D43: ='Operational Data'!G51 -> 8623 | I43: ='Operational Data'!G53 -> 8752
A44: Number of periods of abnormal operation, qty. | C44: 0 | D44: 0 | I44: 0
A45: Cumulative hours of abnormal operation for this year, hours | C45: 0 | D45: 0 | I45: 0
A47: Operator’s comments :
A51: Signed: | B51: H. Edwards | G51: Date: | H51: 2022-01-26

Sheet Energy Form 1
A1: =+'Cover Page'!C39 -> 2021 | B1: Annual Reporting of Energy Usage/Export
A3: =+'Cover Page'!B31 -> Permit EPR/ UP3005LJ | F3: Operator: | G3: VIRIDOR OXFORDSHIRE Ltd
A5: Facility: | B5: =+'Cover Page'!B33:I33 -> Ardley Energy Recovery Facility | F5: Form: | G5: Energy 1
A7: Reporting Period from: | D7: =+'Perf. Form 1'!D6:E6 -> 2021-01-01 | F7: to: | G7: =+'Perf. Form 1'!G6:H6 -> 2021-12-31
A9: Energy Source | D9: Energy Usage | F9: Unit | G9: Specific Useage (KWh/tonne incinerated
A10: Electricity Produced | D10: =+'Operational Data'!G26 -> 253341 | F10: MWh | G10: =+'Operational Data'!H26 -> 807.2471864
A11: Electricity Imported | D11: =+'Operational Data'!G29 -> 14 | F11: MWh | G11: =+'Operational Data'!H29 -> 0.04460967869
A12: Electricity Exported | D12: =+'Operational Data'!G27 -> 225454 | F12: MWh | G12: =+'Operational Data'!H27 -> 718.3878929
A13: Gas Oil | D13: =('Operational Data'!G46*0.85)/1000 -> 161.686575 | F13: tonnes
A14: Steam/hot water exported | D14: =+'Operational Data'!G32 -> 0 | F14: GWh | G14: -
A18: Operator’s comments :
A19: Mass diesel (gas oil) calculated with density = 0.85 kg/l (tonnes=(litres fuel oil used*0.85)/1000))
A29: Signed: | B29: H.Edwards | G29: Date: | H29: 2022-01-26

Sheet Permit Compliance
A1: =+'Cover Page'!$B$29 -> Annual Performance Report 2021 | E1: =+'Cover Page'!$B$33 -> Ardley Energy Recovery Facility
A3: Summary of Permit Compliance
A5: Compliance with permit limits for continuously monitored pollutants
A7: The plant met its emission limits as shown in the table below:
A8: Substance | C8: Percentage time compliant during operation | L8: Notes:
C9: Half-hourly limit | F9: Daily limit | L9: Report to 2 decimal places, i.e. xx.xx% Please provide a brief summary of each notification or non-compliance in the table (rather than just referring to notifications that were sent to the Regulator).
A10: Particulates | C10: 1 | F10: 1
A11: Oxides of nitrogen | C11: 1 | F11: 1
A12: Sulphur dioxide | C12: 1 | F12: 1
A13: Carbon monoxide | C13: 100% 95% of 10-min averages | F13: 1
A14: Total organic carbon | C14: 0.99995 | F14: 1
A15: Hydrogen chloride | C15: 1 | F15: 1
A16: Hydrogen fluoride | C16: 1 | F16: 1
A17: 1/2 hourly % = (No. half hour exceedance / (2 x 15535)) x 100, 15,535hrs running during year across 2 lines
A18: Daily % = (No.Daily exceedance / (No. operational hours/24)) x 100
A19: Summary of any notifications or non-compliances under the permit
A20: Date | B20: Summary of notification or non-compliance | E20: Reason | H20: Measures taken to prevent reoccurrence
A21: 2021-04-27 | B21: Tuesday 27th April 2021, 10:30-10:59, A2 Stack Emissions HCl reading of 109.45mg/m3 against a limit of 60 mg/m3 ½ hour average. | E21: A pocket of waste giving rise to elevated HCL has entered the grate resulting in a significant spike in readings. The levels were substantially reduced by the lime abatement system and levels returned to normal following the incident. | H21: No further actions
A23: Summary of any complaints received and actions to taken to resolve them.
A24: Date | B24: Summary of complaint | E24: Reason * | H24: Measures taken to prevent reoccurrence
B25: No complaints received

Sheet Improvements
A1: =+'Cover Page'!$B$29 -> Annual Performance Report 2021 | E1: =+'Cover Page'!$B$33 -> Ardley Energy Recovery Facility
A3: Summary of Plant Improvements
A5: Summary of any efficiency improvements that have been completed within the year.
A6: Lime consumption / APCR production reduction. The Lime consumption per tonne of waste at Ardley has been highlighted as higher than the original design rate. An initial study carried out in 2021 considered the impact on lime consumption in relation to flue gas temperatures after the final economiser. An options assessment has been completed and a project is underway to improve the performance of the main economisers in 2022. Decant pit & effluent treatment. A review was conducted with an external Water Chemistry specialist and Viridor’s ERF Chemist to identify methods of treatment and recycling of effluent in order to reduce tanker offtake volumes from the site decant pit. Further works on this project will continue in 2022. No annual shutdown period for maintenance was conducted in 2021 and the site has now moved to an 18-month outage schedule due to previous projects to reduce wear on the boiler and water systems. During 2021, the site conducted a trial to operate at 105% Maximum Continuous Rating (MCR) of the original design heat release as defined by the Firing Diagram. The trial began in July 2021 and was completed in November with the assistance of CNIM who designed and built the facility.
A20: Summary of any permit improvement conditions that have been completed within the year and the resulting environmental benefits.
A21: All Improvement Conditions associated with Ardley Energy Recovery Facility's Environmental Permit were completed prior to the calendar year of 2021.
A27: Summary of any changes to the plant or operating techniques which required a variation to the permit and a summary of the resulting environmental impact.
A28: No changes to the plant or operating techniques which required a variation to the Permit were undertaken during the review period of 2021.
A34: Summary of any other improvements made to the plant or planned to be made and a summary of the resulting environmental benefits.
A35: Following the study on lime consumption carried out in 2021, there is an improvement project now in place to make the following additions to site: 1. Install one additional economiser bundle to each line in order to increase the total heat transfer surface area. 2. Install an additional sootblower on L2 final economiser to improve cleaning in this area. The decant pit & effluent treatment improvement project will continue through 2022 to increase water efficiencies on site and reduce wastewater volumes removed from site. In partnership with the technology provider Martin Grate GmBH, Grate modifications have been scheduled for the 2022 outage period to allow for improved grate expansion. This change is planned to improve waste control through the boiler, prevent the loss of grate bars leading to operational downtime and increase control of Under Fire Air. In 2022, Viridor Ardley plan to submit a permit variation to the EA for an increased permitted waste tonnage. The move to an 18 month outage schedule, existing MCR improvements, and long term continual improvement ambitions will allow the site to recover more waste material and support landfill diversion.

Sheet Public Liasion
A1: =+'Cover Page'!$B$29 -> Annual Performance Report 2021 | E1: =+'Cover Page'!$B$33 -> Ardley Energy Recovery Facility
A3: Details of Public & Stakeholder Liaison
A5: Summary of events held during the reporting year.
A6: Date | C6: Description
A7: January | C7: Public Liaison Meeting scheduled for councillors and residents of Middleton Stoney, Ardley & fewcott
A9: Bi-Annually | C9: Waste Collection Authority Meetings
A11: Online event | C11: Through 2021 a total of 939 individuals attended 36 live events, the vast majority were live online events hosted using MS Teams.
A13: Online event | C13: A community talk was hosted online with 419 views to date.
A15: As requested | C15: Environment Agency visits and site tours - as requested
A17: Note: due to Covid 19 restrictions, site visitor centre activities have been adapted from previous years.
A20: List of events planned for next year
A21: Date | C21: Description
C22: As above. With the easing of Covid 19 restrictions it is hoped that Visitor Centre activities will recommence in 2022. Dates for this have not been confirmed.
A25: If you wish to be involved in the public liaison programme, please contact Jessica Baker- Pike 01869 876 345.

Sheet Residue Quality
A1: =+'Cover Page'!$B$29 -> Annual Performance Report 2021 | E1: =+'Cover Page'!$B$33 -> Ardley Energy Recovery Facility
A3: Residue Quality Monitoring Requirements
A5: Summary of monitoring undertaken and compliance
A6: IBA undergoes quarterly sampling as required by permit condition 3.5.1c and table 4.4 including TOC (separate lines), dioxins & furans and metals. TOC has a limit of <3%.
A8: 24 samples of IBA are taken each year (including the 4 permit compliance samples) to undergo basic hazard analysis as required by the ESA protocol.
A10: APCr is sampled quarterly as per permit condition 3.5.1c and table 4.5
A13: Commentary on any specific events
A14: Date & Event | C14: Description
A25: Residue Quality Monitoring Results
A26: Parameter (unit) | C26: Limit | D26: Normal Operation
D27: Bottom ash | F27: APC Residues
A28: Loss on Ignition (average %) | C28: -
A29: Total Organic Carbon (average %) | C29: <3% | D29: 1.28
A30: No. of Assessments Undertaken | C30: --- | D30: 4 Permit compliance samples 24 ESA hazard assessment - (including 4 above). | F30: 4
A31: No. of Hazardous Results | C31: --- | D31: 0
A33: Comments :
A34: All IBA remained non-hazardous as per the ESA protocol within 2021. TOC Value above is average of the four quarters of samples on each line (8 samples).

Sheet Water
A1: =+'Cover Page'!$B$29 -> Annual Performance Report 2021 | E1: =+'Cover Page'!$B$33 -> Ardley Energy Recovery Facility
A3: Emissions to Water
A5: Summary of monitoring undertaken and compliance
A6: Permit Condition 3.5.1(a) and Table S4.2 requires Viridor to ensure sample point W1 is free of oil and grease.
A8: Sample point W1 has remained free of oil and grease. No Permit limit exceedances were recorded for W1 during the review period for emissions to water.
A13: Commentary on any specific events
A14: Date & Event | C14: Description
A22: Emissions to Water / Sewer
A23: Parameter | D23: Monitoring Frequency | G23: Limit | H23: Target | I23: Max. | J23: Average
A24: Oil & Grease | D24: Not set | G24: free of oil and grease | H24: - | I24: - | J24: -

Sheet Air (periodic)
A1: =+'Cover Page'!$B$29 -> Annual Performance Report 2021 | E1: =+'Cover Page'!$B$33 -> Ardley Energy Recovery Facility
A3: Emissions to Air (periodically monitored)
A5: Summary of monitoring undertaken, standards used and compliance | M5: Notes:
A6: All analysis below completed by permit specified BS EN method other than nitrous oxide which was completed by allowed alternative method M22. Monitoring was undertaken in January and July 2021. | M6: Template may require adjustment for any bespoke monitoring requirements of permit.
A9: Results of emissions to air that are periodically monitored
A10: Substance | C10: Ref. Period | D10: Emission Limit Value | F10: Average H1 | I10: Average H2 | M10: User to add additional tables as necessary, depending on whether quarterly or bi-annual reporting is required for the compliance year
F11: L1 | G11: L2 | I11: L1 | J11: L2
A12: Nitrous Oxide | C12: 1hr | D12: - | F12: 9 | G12: 16.2 | I12: 8.4 | J12: 6.4
A13: Hydrogen fluoride | D13: 1 mg/m3 | F13: 0.62 | G13: <0.03 | I13: 0.042 | J13: 0.032
A14: Cd and Th and their compounds | C14: Maximum 8 hours | D14: 0.05 mg/m3 | F14: 0.001 | G14: 0.0012 | I14: 0.00083 | J14: <0.0010
A15: Hg and its compounds | D15: 0.05 mg/m3 | F15: 0.012 | G15: 0.0034 | I15: 0.0047 | J15: 0.0044
A16: Sb, As, Pb, Cr, Co, Cu, Mn, Ni, V and their compounds | D16: 0.5 mg/m3 | F16: 0.046 | G16: 0.074 | I16: 0.058 | J16: 0.035
A17: Dioxins & Furans (I-TEQ) | C17: 6-8hrs | D17: 0.1 ng/m3 | F17: 0.000625 | G17: 0.002167 | I17: 0.0014 | J17: 0.0011
A18: PCBs (WHO-TEQ Humans / Mammals) | D18: None set ng/m3 | F18: 9e-05 | G18: 0.000194 | I18: 6.7e-05 | J18: 6.3e-05
A19: PCBs (WHO-TEQ Fish) | D19: None set ng/m3 | F19: 4e-06 | G19: 1e-05 | I19: 3e-06 | J19: 3e-06
A20: PCBs (WHO-TEQ Birds) | D20: None set ng/m3 | F20: 0.000181 | G20: 0.000449 | I20: 0.000294 | J20: 0.00027
A21: Anthanthrene | D21: None set µg/m3 | F21: < 0.0013 | G21: < 0.0014 | I21: <0.0012 | J21: <0.0013
A22: Benzo(a)anthracene | D22: None set µg/m3 | F22: < 0.0013 | G22: < 0.0014 | I22: <0.0012 | J22: <0.0013
A23: Benzo(a)pyrene | D23: None set µg/m3 | F23: < 0.0013 | G23: < 0.0014 | I23: <0.0012 | J23: <0.0013
A24: Benzo(b)fluoranthene | D24: None set µg/m3 | F24: 0.024 | G24: < 0.0014 | I24: <0.0012 | J24: <0.0013
A25: Benzo(b)naptho(2,1-d) thiophene | D25: None set µg/m3 | F25: 0.003 | G25: < 0.0014 | I25: <0.0012 | J25: <0.0013
A26: Benzo(c)phenanthrene | D26: None set µg/m3 | F26: 0.017 | G26: < 0.0014 | I26: <0.0012 | J26: <0.0013
A27: Benzo(ghi)perylene | D27: None set µg/m3 | F27: 0.0013 | G27: 0.0014 | I27: <0.0012 | J27: <0.0013
A28: Benzo(k)fluoranthene | D28: None set µg/m3 | F28: 0.0084 | G28: < 0.0014 | I28: <0.0012 | J28: <0.0013
A29: Cholanthrene | D29: None set µg/m3 | F29: < 0.0013 | G29: < 0.0014 | I29: <0.0012 | J29: <0.0013
A30: Chrysene | D30: None set µg/m3 | F30: < 0.0013 | G30: < 0.0014 | I30: <0.0012 | J30: <0.0013
A31: Cyclopenta(cd)pyrene | D31: None set µg/m3 | F31: < 0.0013 | G31: 0.0014 | I31: <0.0012 | J31: <0.0013
A32: Dibenzo(ai)pyrene | D32: None set µg/m3 | F32: < 0.0013 | G32: < 0.0014 | I32: <0.0012 | J32: <0.0013
A33: Dibenzo(ah)anthracene | D33: None set µg/m3 | F33: < 0.0013 | G33: < 0.0014 | I33: <0.0012 | J33: <0.0013
A34: Fluoranthene | D34: None set µg/m3 | F34: 0.19 | G34: 0.0121 | I34: 0.0108 | J34: 0.0136
A35: Indeno(123-cd) pyrene | D35: None set µg/m3 | F35: < 0.0013 | G35: < 0.0014 | I35: <0.0012 | J35: <0.0013
A36: Naphthalene | D36: None set µg/m3 | F36: 0.63 | G36: 0.66 | I36: 0.3761 | J36: 0.3166
A37: Comments :
A38: All results returned within limits.

Sheet Air (CEMS)
A1: =+'Cover Page'!$B$29 -> Annual Performance Report 2021
A3: Emissions to Air (continuously monitored)
P4: Notes:
A5: Summary of monitoring undertaken, standards used and compliance | P5: Template may require adjustment for any bespoke monitoring requirements of permit
A6: The monitoring standards utilised during this testing conformed to those stipulated within Table S4.1 of the Permit. | P6: Report to 2 decimal places, i.e. xx.xx%
A8: All results below monitored by CEMs.
A11: Results of emissions to air that are continuously monitored (maximum and average values for each line)
A12: Substance | B12: Reference Period | C12: Emission Limit Value | D12: A1 | H12: A2
D13: Max | F13: Average | H13: Max | J13: Average
A14: Oxides of nitrogen | B14: Daily mean | C14: 200 mg/m3 | D14: =NOx!O19 -> 185 | F14: =NOx!N19 -> 175.4733333 | H14: =NOx!O34 -> 184 | J14: =NOx!N34 -> 176.0258333
B15: ½ hourly mean | C15: 400 mg/m3 | D15: =NOx!M19 -> 282 | F15: =NOx!L19 -> 175.5833333 | H15: =NOx!M34 -> 358 | J15: =NOx!L34 -> 176.0833333
A16: Particulates | B16: Daily mean | C16: 10 mg/m3 | D16: =Particulates!O19 -> 2 | F16: =Particulates!N19 -> 1.015833333 | H16: =Particulates!O34 -> 5.6 | J16: =Particulates!N34 -> 0.3675
B17: ½ hourly mean | C17: 30 mg/m3 | D17: =Particulates!M19 -> 2 | F17: =Particulates!L190 -> 0 | H17: =Particulates!M34 -> 10.2 | J17: =Particulates!L34 -> 0.3716666667
A18: Total Organic Carbon | B18: Daily mean | C18: 10 mg/m3 | D18: =TOC!O19 -> 1 | F18: =TOC!N19 -> 0.1325 | H18: =TOC!O34 -> 3 | J18: =TOC!N34 -> 0.1858333333
B19: ½ hourly mean | C19: 20 mg/m3 | D19: =TOC!M19 -> 5 | F19: =TOC!L19 -> 0.1366666667 | H19: =TOC!M34 -> 5 | J19: =TOC!L34 -> 0.1816666667
A20: Hydrogen chloride | B20: Daily mean | C20: 10 mg/m3 | D20: =HCl!O19 -> 8 | F20: =HCl!N19 -> 5.386666667 | H20: =HCl!O34 -> 7 | J20: =HCl!N34 -> 5.125833333
B21: ½ hourly mean | C21: 60 mg/m3 | D21: =HCl!M19 -> 29.6 | F21: =HCl!L19 -> 5.425 | H21: =HCl!M34 -> 109 | J21: =HCl!L34 -> 5.008333333
A22: Sulphur dioxide | B22: Daily mean | C22: 50 mg/m3 | D22: ='SO2'!O19 -> 40 | F22: ='SO2'!N19 -> 15.34333333 | H22: ='SO2'!O34 -> 39 | J22: ='SO2'!N34 -> 19.12
B23: ½ hourly mean | C23: 200 mg/m3 | D23: ='SO2'!M19 -> 161 | F23: ='SO2'!L19 -> 15.33333333 | H23: ='SO2'!M34 -> 144 | J23: ='SO2'!L34 -> 18.83333333
A24: Carbon monoxide | B24: Daily mean | C24: 50 mg/m3 | D24: ='CO 95% 10 min'!Q19 -> 14 | F24: ='CO 95% 10 min'!P19 -> 1.62 | H24: ='CO 95% 10 min'!Q34 -> 27 | J24: ='CO 95% 10 min'!P34 -> 3.1375
B25: 95%ile 10-min avg | C25: 150 mg/m3 | D25: ='CO 95% 10 min'!M19 -> 7.416666667 | F25: ='CO 95% 10 min'!N19 -> 1.5 | H25: ='CO 95% 10 min'!M34 -> 8.216666667 | J25: ='CO 95% 10 min'!N34 -> 2.26
A27: Comments :

Sheet HCl
A1: =+'Cover Page'!$B$29 -> Annual Performance Report 2021 | E1: =+'Cover Page'!$B$33 -> Ardley Energy Recovery Facility
A3: Monitoring of Hydrogen Chloride emissions | D3: Whole Installation | J3: =+A3 -> Monitoring of Hydrogen Chloride emissions | N3: Per Combustion Line | Q3: Notes:
Q4: User to add logic to complete Whole installation, Table A5:G18. From the data in Per Combustion Line, Table J6:O79, subject to No. of lines installed
A5: mg/Nm3 | B5: 1/2 Hourly Reference Periods | E5: Daily Reference Periods
A6: =+'Cover Page'!C39 -> 2021 | B6: 1/2 hourly HCl ELV | C6: Monthly 1/2 hourly mean | D6: Highest 1/2 hourly maximum | E6: Daily HCl ELV | F6: Monthly daily mean | G6: Highest daily maximum | J6: =+A6 -> 2021 | K6: mg/Nm3 | L6: Monthly 1/2 hourly mean | M6: Monthly 1/2 hourly maximum | N6: Monthly daily mean | O6: Monthly daily maximum
A7: Jan | B7: 60 | C7: =AVERAGE(L7,L22) -> 5.65 | D7: =MAX(M7,M22) -> 29.6 | E7: 10 | F7: =AVERAGE(N7,N22) -> 5.605 | G7: =MAX(O7,O22) -> 7.3 | J7: A1 | K7: Jan | L7: 5.7 | M7: 29.6 | N7: 5.65 | O7: 7.3
A8: Feb | B8: 60 | C8: =AVERAGE(L8,L23) -> 5.55 | D8: =MAX(M8,M23) -> 22.5 | E8: 10 | F8: =AVERAGE(N8,N23) -> 5.5 | G8: =MAX(O8,O23) -> 7 | K8: Feb | L8: 5.6 | M8: 20.6 | N8: 5.5 | O8: 6.1
A9: Mar | B9: 60 | C9: 5.4 | D9: 19.8 | E9: 10 | F9: 5.415 | G9: 7.5 | K9: Mar | L9: 5.8 | M9: 18.2 | N9: 5.84 | O9: 7.5 | Q9: Whole Installation table A5:G18:
A10: Apr | B10: 60 | C10: 6 | D10: 109 | E10: 10 | F10: 5.715 | G10: 8 | K10: Apr | L10: 6 | M10: 21 | N10: 5.83 | O10: 8 | Q10: Mean: for 1/2 hourly and daily periods calculate mean of values across all operational combustion lines for the month
A11: May | B11: 60 | C11: 5 | D11: 25 | E11: 10 | F11: 5.39 | G11: 7 | K11: May | L11: 5 | M11: 25 | N11: 5.48 | O11: 7
A12: Jun | B12: 60 | C12: 5.5 | D12: 19 | E12: 10 | F12: 5.335 | G12: 7 | K12: Jun | L12: 6 | M12: 19 | N12: 5.53 | O12: 7
A13: Jul | B13: 60 | C13: 5.5 | D13: 29 | E13: 10 | F13: 5.32 | G13: 7 | K13: Jul | L13: 6 | M13: 29 | N13: 5.48 | O13: 7 | Q13: Maximum: for 1/2 hourly and daily periods use the highest value across all operational combustion lines for the month
A14: Aug | B14: 60 | C14: 5 | D14: 17 | E14: 10 | F14: 5.24 | G14: 6 | K14: Aug | L14: 5 | M14: 16 | N14: 5.29 | O14: 6
A15: Sep | B15: 60 | C15: 5 | D15: 28 | E15: 10 | F15: 5.48 | G15: 7 | K15: Sep | L15: 5 | M15: 28 | N15: 5.41 | O15: 7
A16: Oct | B16: 60 | C16: 5 | D16: 29 | E16: 10 | F16: 5.125 | G16: 7 | K16: Oct | L16: 5 | M16: 20 | N16: 5.12 | O16: 7
A17: Nov | B17: 60 | C17: 4.5 | D17: 19 | E17: 10 | F17: 4.515 | G17: 6 | K17: Nov | L17: 5 | M17: 19 | N17: 4.93 | O17: 6
A18: Dec | B18: 60 | C18: =AVERAGE(L18,L33) -> 4.5 | D18: 21 | E18: 10 | F18: 4.435 | G18: 6 | K18: Dec | L18: 5 | M18: 20 | N18: 4.58 | O18: 6
K19: Annual | L19: =AVERAGE(L7:L18) -> 5.425 | M19: =MAX(M7:M18) -> 29.6 | N19: =AVERAGE(N7:N18) -> 5.386666667 | O19: =MAX(O7:O18) -> 8
J21: =+A6 -> 2021 | K21: mg/Nm3 | L21: Monthly 1/2 hourly mean | M21: Monthly 1/2 hourly maximum | N21: Monthly daily mean | O21: Monthly daily maximum
J22: A2 | K22: Jan | L22: 5.6 | M22: 16.9 | N22: 5.56 | O22: 6.6
K23: Feb | L23: 5.5 | M23: 22.5 | N23: 5.5 | O23: 7
K24: Mar | L24: 5 | M24: 19.8 | N24: 4.99 | O24: 6.8
K25: Apr | L25: 6 | M25: 109 | N25: 5.6 | O25: 7
K26: May | L26: 5 | M26: 21 | N26: 5.3 | O26: 7
K27: Jun | L27: 5 | M27: 16 | N27: 5.14 | O27: 6
K28: Jul | L28: 5 | M28: 20 | N28: 5.16 | O28: 7
K29: Aug | L29: 5 | M29: 17 | N29: 5.19 | O29: 6
K30: Sep | L30: 5 | M30: 23 | N30: 5.55 | O30: 6
K31: Oct | L31: 5 | M31: 29 | N31: 5.13 | O31: 7
K32: Nov | L32: 4 | M32: 17 | N32: 4.1 | O32: 6
K33: Dec | L33: 4 | M33: 21 | N33: 4.29 | O33: 6
K34: Annual | L34: =AVERAGE(L22:L33) -> 5.008333333 | M34: =MAX(M22:M33) -> 109 | N34: =AVERAGE(N22:N33) -> 5.125833333 | O34: =MAX(O22:O33) -> 7
A48: Comments :
A49: One schedule notifications for HCl elevated reading was submitted to the Environment Agency year to date

Sheet SO2
A1: =+'Cover Page'!$B$29 -> Annual Performance Report 2021 | E1: =+'Cover Page'!$B$33 -> Ardley Energy Recovery Facility
A3: Monitoring of Sulphur dioxide emissions | D3: Whole Installation | J3: =+A3 -> Monitoring of Sulphur dioxide emissions | N3: Per Combustion Line | Q3: Notes:
Q4: User to add logic to complete Whole installation, Table A5:G18. From the data in Per Combustion Line, Table J6:O79, subject to No. of lines installed
A5: mg/Nm3 | B5: 1/2 Hourly Reference Periods | E5: Daily Reference Periods
A6: =+'Cover Page'!C39 -> 2021 | B6: 1/2 hourly SO2 ELV | C6: Monthly 1/2 hourly mean | D6: Highest 1/2 hourly maximum | E6: Daily SO2 ELV | F6: Monthly daily mean | G6: Highest daily maximum | J6: =+A6 -> 2021 | K6: mg/Nm3 | L6: Monthly 1/2 hourly mean | M6: Monthly 1/2 hourly maximum | N6: Monthly daily mean | O6: Monthly daily maximum
A7: Jan | B7: 200 | C7: =AVERAGE(L7,L22) -> 21.5 | D7: =MAX(M7,M22) -> 138 | E7: 50 | F7: =AVERAGE(N7,N22) -> 21.355 | G7: =MAX(O7,O22) -> 32 | J7: A1 | K7: Jan | L7: 21 | M7: 138 | N7: 20.65 | O7: 30
A8: Feb | B8: 200 | C8: =AVERAGE(L8,L23) -> 19 | D8: =MAX(M8,M23) -> 79 | E8: 50 | F8: =AVERAGE(N8,N23) -> 18.535 | G8: =MAX(O8,O23) -> 29 | K8: Feb | L8: 16 | M8: 79 | N8: 15.46 | O8: 27
A9: Mar | B9: 200 | C9: 16 | D9: 161 | E9: 50 | F9: 16.385 | G9: 32 | K9: Mar | L9: 15 | M9: 161 | N9: 15.35 | O9: 32 | Q9: Whole Installation table A5:G18:
A10: Apr | B10: 200 | C10: 17.5 | D10: 142 | E10: 50 | F10: 17.285 | G10: 30 | K10: Apr | L10: 12 | M10: 100 | N10: 12.07 | O10: 24 | Q10: Mean: for 1/2 hourly and daily periods calculate mean of values across all operational combustion lines for the month
A11: May | B11: 200 | C11: 15 | D11: 107 | E11: 50 | F11: 15.845 | G11: 28 | K11: May | L11: 9 | M11: 107 | N11: 9.06 | O11: 20
A12: Jun | B12: 200 | C12: 11 | D12: 78 | E12: 50 | F12: 11.29 | G12: 21 | K12: Jun | L12: 9 | M12: 78 | N12: 9.3 | O12: 15
A13: Jul | B13: 200 | C13: =AVERAGE(L28,13) -> 10 | D13: =MAX(M28,M13) -> 76 | E13: 50 | F13: =AVERAGE(N28,N13) -> 7.655 | G13: =AVERAGE(O28,O13) -> 17 | K13: Jul | L13: 8 | M13: 75 | N13: 8.5 | O13: 15 | Q13: Maximum: for 1/2 hourly and daily periods use the highest value across all operational combustion lines for the month
A14: Aug | B14: 200 | C14: =AVERAGE(L29,13) -> 9 | D14: =MAX(M29,M14) -> 100 | E14: 50 | F14: =AVERAGE(N29,N14) -> 11.745 | G14: =MAX(O29,14) -> 14 | K14: Aug | L14: 18 | M14: 100 | N14: 17.52 | O14: 36
A15: Sep | B15: 200 | C15: 14.5 | D15: 97 | E15: 50 | F15: 10.93 | G15: =MAX(O30,14) -> 27 | K15: Sep | L15: 6 | M15: 29 | N15: 5.48 | O15: 7
A16: Oct | B16: 200 | C16: 21.5 | D16: 144 | E16: 50 | F16: 22.5 | G16: 39 | K16: Oct | L16: 17 | M16: 124 | N16: 18 | O16: 32
A17: Nov | B17: 200 | C17: 28.5 | D17: 113 | E17: 50 | F17: 28.385 | G17: 39 | K17: Nov | L17: 28 | M17: 113 | N17: 27.67 | O17: 39
A18: Dec | B18: 200 | C18: 25 | D18: 115 | E18: 50 | F18: 24.87 | G18: 40 | K18: Dec | L18: 25 | M18: 115 | N18: 25.06 | O18: 40
K19: Annual | L19: =AVERAGE(L7:L18) -> 15.33333333 | M19: =MAX(M7:M18) -> 161 | N19: =AVERAGE(N7:N18) -> 15.34333333 | O19: =MAX(O7:O18) -> 40
J21: =+A6 -> 2021 | K21: mg/Nm3 | L21: Monthly 1/2 hourly mean | M21: Monthly 1/2 hourly maximum | N21: Monthly daily mean | O21: Monthly daily maximum
J22: A2 | K22: Jan | L22: 22 | M22: 90 | N22: 22.06 | O22: 32
K23: Feb | L23: 22 | M23: 72 | N23: 21.61 | O23: 29
K24: Mar | L24: 17 | M24: 120 | N24: 17.42 | O24: 26
K25: Apr | L25: 23 | M25: 142 | N25: 22.5 | O25: 30
K26: May | L26: 21 | M26: 93 | N26: 22.63 | O26: 28
K27: Jun | L27: 13 | M27: 69 | N27: 13.28 | O27: 21
K28: Jul | L28: 7 | M28: 76 | N28: 6.81 | O28: 19
K29: Aug | L29: 5 | M29: 58 | N29: 5.97 | O29: 12
K30: Sep | L30: 16 | M30: 97 | N30: 16.38 | O30: 27
K31: Oct | L31: 26 | M31: 144 | N31: 27 | O31: 39
K32: Nov | L32: 29 | M32: 84 | N32: 29.1 | O32: 38
K33: Dec | L33: 25 | M33: 86 | N33: 24.68 | O33: 37
K34: Annual | L34: =AVERAGE(L22:L33) -> 18.83333333 | M34: =MAX(M22:M33) -> 144 | N34: =AVERAGE(N22:N33) -> 19.12 | O34: =MAX(O22:O33) -> 39
A48: Comments :

Sheet NOx
A1: =+'Cover Page'!$B$29 -> Annual Performance Report 2021 | E1: =+'Cover Page'!$B$33 -> Ardley Energy Recovery Facility
A3: Monitoring of Oxides of Nitrogen emissions | D3: Whole Installation | J3: =+A3 -> Monitoring of Oxides of Nitrogen emissions | N3: Per Combustion Line | Q3: Notes:
Q4: User to add logic to complete Whole installation, Table A5:G18. From the data in Per Combustion Line, Table J6:O79, subject to No. of lines installed
A5: mg/Nm3 | B5: 1/2 Hourly Reference Periods | E5: Daily Reference Periods
A6: =+'Cover Page'!C39 -> 2021 | B6: 1/2 hourly NOx ELV | C6: Monthly 1/2 hourly mean | D6: Highest 1/2 hourly maximum | E6: Daily NOx ELV | F6: Monthly daily mean | G6: Highest daily maximum | J6: =+A6 -> 2021 | K6: mg/Nm3 | L6: Monthly 1/2 hourly mean | M6: Monthly 1/2 hourly maximum | N6: Monthly daily mean | O6: Monthly daily maximum
A7: Jan | B7: 400 | C7: =AVERAGE(L7,L22) -> 176 | D7: =MAX(M7,M22) -> 199 | E7: 200 | F7: =AVERAGE(N7,N22) -> 175.835 | G7: =MAX(O7,O22) -> 177 | J7: A1 | K7: Jan | L7: 176 | M7: 199 | N7: 175.9 | O7: 177
A8: Feb | B8: 400 | C8: =AVERAGE(L8,L23) -> 176 | D8: =MAX(M8,M23) -> 215 | E8: 200 | F8: =AVERAGE(N8,N23) -> 175.84 | G8: =MAX(O8,O23) -> 177 | K8: Feb | L8: 176 | M8: 215 | N8: 175.82 | O8: 176
A9: Mar | B9: 400 | C9: 176 | D9: 212 | E9: 200 | F9: 175.74 | G9: 177 | K9: Mar | L9: 176 | M9: 198 | N9: 175.61 | O9: 176 | Q9: Whole Installation table A5:G18:
A10: Apr | B10: 400 | C10: 176 | D10: 205 | E10: 200 | F10: 175.78 | G10: 177 | K10: Apr | L10: 176 | M10: 205 | N10: 175.63 | O10: 177 | Q10: Mean: for 1/2 hourly and daily periods calculate mean of values across all operational combustion lines for the month
A11: May | B11: 400 | C11: 176 | D11: 224 | E11: 200 | F11: 175.92 | G11: 176 | K11: May | L11: 176 | M11: 194 | N11: 175.87 | O11: 176
A12: Jun | B12: 400 | C12: 176 | D12: 242 | E12: 200 | F12: 175.75 | G12: 178 | K12: Jun | L12: 176 | M12: 192 | N12: 175.6 | O12: 176
A13: Jul | B13: 400 | C13: 175 | D13: 299 | E13: 200 | F13: 174.8 | G13: 182 | K13: Jul | L13: 173 | M13: 196 | N13: 173 | O13: 178 | Q13: Maximum: for 1/2 hourly and daily periods use the highest value across all operational combustion lines for the month
A14: Aug | B14: 400 | C14: 174.5 | D14: 243 | E14: 200 | F14: 174.365 | G14: 178 | K14: Aug | L14: 173 | M14: 243 | N14: 172.6 | O14: 177
A15: Sep | B15: 400 | C15: 175.5 | D15: 282 | E15: 200 | F15: 175.585 | G15: 178 | K15: Sep | L15: 175 | M15: 282 | N15: 175.2 | O15: 178
A16: Oct | B16: 400 | C16: 176 | D16: 277 | E16: 200 | F16: 176.25 | G16: 182 | K16: Oct | L16: 176 | M16: 257 | N16: 176.08 | O16: 182
A17: Nov | B17: 400 | C17: 176.5 | D17: 358 | E17: 200 | F17: 176.485 | G17: 185 | K17: Nov | L17: 177 | M17: 254 | N17: 177.4 | O17: 185
A18: Dec | B18: 400 | C18: 176.5 | D18: 266 | E18: 200 | F18: 176.645 | G18: 181 | K18: Dec | L18: 177 | M18: 266 | N18: 176.97 | O18: 181
K19: Annual | L19: =AVERAGE(L7:L18) -> 175.5833333 | M19: =MAX(M7:M18) -> 282 | N19: =AVERAGE(N7:N18) -> 175.4733333 | O19: =MAX(O7:O18) -> 185
J21: =+A6 -> 2021 | K21: mg/Nm3 | L21: Monthly 1/2 hourly mean | M21: Monthly 1/2 hourly maximum | N21: Monthly daily mean | O21: Monthly daily maximum
J22: A2 | K22: Jan | L22: 176 | M22: 196 | N22: 175.77 | O22: 176
K23: Feb | L23: 176 | M23: 197 | N23: 175.86 | O23: 177
K24: Mar | L24: 176 | M24: 212 | N24: 175.87 | O24: 177
K25: Apr | L25: 176 | M25: 196 | N25: 175.93 | O25: 177
K26: May | L26: 176 | M26: 224 | N26: 175.97 | O26: 176
K27: Jun | L27: 176 | M27: 242 | N27: 175.9 | O27: 178
K28: Jul | L28: 177 | M28: 299 | N28: 176.6 | O28: 182
K29: Aug | L29: 176 | M29: 233 | N29: 176.13 | O29: 178
K30: Sep | L30: 176 | M30: 201 | N30: 175.97 | O30: 177
K31: Oct | L31: 176 | M31: 277 | N31: 176.42 | O31: 180
K32: Nov | L32: 176 | M32: 358 | N32: 175.57 | O32: 184
K33: Dec | L33: 176 | M33: 256 | N33: 176.32 | O33: 179
K34: Annual | L34: =AVERAGE(L22:L33) -> 176.0833333 | M34: =MAX(M22:M33) -> 358 | N34: =AVERAGE(N22:N33) -> 176.0258333 | O34: =MAX(O22:O33) -> 184
A48: Comments :

Sheet TOC
A1: =+'Cover Page'!$B$29 -> Annual Performance Report 2021 | E1: =+'Cover Page'!$B$33 -> Ardley Energy Recovery Facility
A3: Monitoring of Total organic carbon emissions | D3: Whole Installation | J3: =+A3 -> Monitoring of Total organic carbon emissions | N3: Per Combustion Line | Q3: Notes:
Q4: User to add logic to complete Whole installation, Table A5:G18. From the data in Per Combustion Line, Table J6:O79, subject to No. of lines installed
A5: mg/Nm3 | B5: 1/2 Hourly Reference Periods | E5: Daily Reference Periods
A6: =+'Cover Page'!C39 -> 2021 | B6: 1/2 hourly TOC ELV | C6: Monthly 1/2 hourly mean | D6: Highest 1/2 hourly maximum | E6: Daily TOC ELV | F6: Monthly daily mean | G6: Highest daily maximum | J6: =+A6 -> 2021 | K6: mg/Nm3 | L6: Monthly 1/2 hourly mean | M6: Monthly 1/2 hourly maximum | N6: Monthly daily mean | O6: Monthly daily maximum
A7: Jan | B7: 20 | C7: =AVERAGE(L7,L22) -> 0.1 | D7: =MAX(M7,M22) -> 4.5 | E7: 10 | F7: =AVERAGE(N7,N22) -> 0.09 | G7: =MAX(O7,O22) -> 0.4 | J7: A1 | K7: Jan | L7: 0.2 | M7: 4.5 | N7: 0.18 | O7: 0.4
A8: Feb | B8: 20 | C8: =AVERAGE(L8,L23) -> 0.1 | D8: =MAX(M8,M23) -> 1.8 | E8: 10 | F8: =AVERAGE(N8,N23) -> 0.075 | G8: =MAX(O8,O23) -> 0.3 | K8: Feb | L8: 0.2 | M8: 1.8 | N8: 0.15 | O8: 0.3
A9: Mar | B9: 20 | C9: 0.1 | D9: 2.4 | E9: 10 | F9: 0.14 | G9: 0.5 | K9: Mar | L9: 0.2 | M9: 1.8 | N9: 0.21 | O9: 0.5 | Q9: Whole Installation table A5:G18:
A10: Apr | B10: 20 | C10: 0 | D10: 2 | E10: 10 | F10: 0 | G10: 0 | K10: Apr | L10: 0 | M10: 2 | N10: 0 | O10: 0 | Q10: Mean: for 1/2 hourly and daily periods calculate mean of values across all operational combustion lines for the month
A11: May | B11: 20 | C11: 0.03 | D11: 3 | E11: 10 | F11: 0.03 | G11: 1 | K11: May | L11: 0.06 | M11: 3 | N11: 0.06 | O11: 1
A12: Jun | B12: 20 | C12: 0.115 | D12: 5 | E12: 10 | F12: 0.115 | G12: 1 | K12: Jun | L12: 0.2 | M12: 5 | N12: 0.2 | O12: 1
A13: Jul | B13: 20 | C13: 0.305 | D13: 5 | E13: 10 | F13: 0.305 | G13: 1 | K13: Jul | L13: 0.61 | M13: 5 | N13: 0.61 | O13: 1 | Q13: Maximum: for 1/2 hourly and daily periods use the highest value across all operational combustion lines for the month
A14: Aug | B14: 20 | C14: 0.05 | D14: 3 | E14: 10 | F14: 0.055 | G14: 1 | K14: Aug | L14: 0.1 | M14: 3 | N14: 0.11 | O14: 1
A15: Sep | B15: 20 | C15: 0.05 | D15: 3 | E15: 10 | F15: 0.05 | G15: 1 | K15: Sep | L15: 0.07 | M15: 3 | N15: 0.07 | O15: 1
A16: Oct | B16: 20 | C16: 0.445 | D16: 5 | E16: 10 | F16: 0.435 | G16: 1 | K16: Oct | L16: 0 | M16: 5 | N16: 0 | O16: 0
A17: Nov | B17: 20 | C17: 0 | D17: 3 | E17: 10 | F17: 0 | G17: 0 | K17: Nov | L17: 0 | M17: 2 | N17: 0 | O17: 0
A18: Dec | B18: 20 | C18: 0.615 | D18: 4 | E18: 10 | F18: 0.615 | G18: 3 | K18: Dec | L18: 0 | M18: 2 | N18: 0 | O18: 0
K19: Annual | L19: =AVERAGE(L7:L18) -> 0.1366666667 | M19: =MAX(M7:M18) -> 5 | N19: =AVERAGE(N7:N18) -> 0.1325 | O19: =MAX(O7:O18) -> 1
J21: =+A6 -> 2021 | K21: mg/Nm3 | L21: Monthly 1/2 hourly mean | M21: Monthly 1/2 hourly maximum | N21: Monthly daily mean | O21: Monthly daily maximum
J22: A2 | K22: Jan | L22: 0 | M22: 1.7 | N22: 0 | O22: 0
K23: Feb | L23: 0 | M23: 0.9 | N23: 0 | O23: 0
K24: Mar | L24: 0 | M24: 2.4 | N24: 0.07 | O24: 0.5
K25: Apr | L25: 0 | M25: 1 | N25: 0 | O25: 0
K26: May | L26: 0 | M26: 2 | N26: 0 | O26: 0
K27: Jun | L27: 0.03 | M27: 2 | N27: 0.03 | O27: 1
K28: Jul | L28: 0 | M28: 5 | N28: 0 | O28: 0
K29: Aug | L29: 0 | M29: 3 | N29: 0 | O29: 0
K30: Sep | L30: 0.03 | M30: 2 | N30: 0.03 | O30: 1
K31: Oct | L31: 0.89 | M31: 2 | N31: 0.87 | O31: 1
K32: Nov | L32: 0 | M32: 3 | N32: 0 | O32: 0
K33: Dec | L33: 1.23 | M33: 4 | N33: 1.23 | O33: 3
K34: Annual | L34: =AVERAGE(L22:L33) -> 0.1816666667 | M34: =MAX(M22:M33) -> 5 | N34: =AVERAGE(N22:N33) -> 0.1858333333 | O34: =MAX(O22:O33) -> 3
A48: Comments :
A49: An elevated half hour average (13:30pm – 13:59pm) of Total Organic Carbon (TOC) was recorded with a measurement of 20.16 mg/m3 (Half hour permit limit 20 mg/m3) from emission point A2.

Sheet Particulates
A1: =+'Cover Page'!$B$29 -> Annual Performance Report 2021 | E1: =+'Cover Page'!$B$33 -> Ardley Energy Recovery Facility
A3: Monitoring of Particulate matter emissions | D3: Whole Installation | J3: =+A3 -> Monitoring of Particulate matter emissions | N3: Per Combustion Line | Q3: Notes:
Q4: User to add logic to complete Whole installation, Table A5:G18. From the data in Per Combustion Line, Table J6:O79, subject to No. of lines installed
A5: mg/Nm3 | B5: 1/2 Hourly Reference Periods | E5: Daily Reference Periods
A6: =+'Cover Page'!C39 -> 2021 | B6: 1/2 hourly PM ELV | C6: Monthly 1/2 hourly mean | D6: Highest 1/2 hourly maximum | E6: Daily PM ELV | F6: Monthly daily mean | G6: Highest daily maximum | J6: =+A6 -> 2021 | K6: mg/Nm3 | L6: Monthly 1/2 hourly mean | M6: Monthly 1/2 hourly maximum | N6: Monthly daily mean | O6: Monthly daily maximum
A7: Jan | B7: 30 | C7: =AVERAGE(L7,L22) -> 1.45 | D7: =MAX(M7,M22) -> 6.5 | E7: 10 | F7: =AVERAGE(N7,N22) -> 1.465 | G7: =MAX(O7,O22) -> 5.6 | J7: A1 | K7: Jan | L7: 1.1 | M7: 1.6 | N7: 1.13 | O7: 1.3
A8: Feb | B8: 30 | C8: =AVERAGE(L8,L23) -> 1.3 | D8: =MAX(M8,M23) -> 10.2 | E8: 10 | F8: =AVERAGE(N8,N23) -> 1.3 | G8: =MAX(O8,O23) -> 3.2 | K8: Feb | L8: 1.1 | M8: 1.7 | N8: 1.11 | O8: 1.4
A9: Mar | B9: 30 | C9: 0.95 | D9: 1.9 | E9: 10 | F9: 0.925 | G9: 1.5 | K9: Mar | L9: 1 | M9: 1.4 | N9: 0.95 | O9: 1.1 | Q9: Whole Installation table A5:G18:
A10: Apr | B10: 30 | C10: 0.5 | D10: 1 | E10: 10 | F10: 0.5 | G10: 1 | K10: Apr | L10: 1 | M10: 1 | N10: 1 | O10: 1 | Q10: Mean: for 1/2 hourly and daily periods calculate mean of values across all operational combustion lines for the month
A11: May | B11: 30 | C11: 0.5 | D11: 1 | E11: 10 | F11: 0.5 | G11: 1 | K11: May | L11: 1 | M11: 1 | N11: 1 | O11: 1
A12: Jun | B12: 30 | C12: 0.5 | D12: 2 | E12: 10 | F12: 0.5 | G12: 1 | K12: Jun | L12: 1 | M12: 1 | N12: 1 | O12: 1
A13: Jul | B13: 30 | C13: 0.53 | D13: 1 | E13: 10 | F13: 0.53 | G13: 1 | K13: Jul | L13: 1 | M13: 1 | N13: 1 | O13: 1 | Q13: Maximum: for 1/2 hourly and daily periods use the highest value across all operational combustion lines for the month
A14: Aug | B14: 30 | C14: 0.565 | D14: 2 | E14: 10 | F14: 0.565 | G14: 1 | K14: Aug | L14: 1 | M14: 2 | N14: 1 | O14: 1
A15: Sep | B15: 30 | C15: 0.565 | D15: 2 | E15: 10 | F15: =AVERAGE(N15,N30) -> 0.515 | G15: 1 | K15: Sep | L15: 1.06 | M15: 2 | N15: 1 | O15: 1
A16: Oct | B16: 30 | C16: 0.5 | D16: 2 | E16: 10 | F16: 0.5 | G16: 1 | K16: Oct | L16: 1 | M16: 2 | N16: 1 | O16: 1
A17: Nov | B17: 30 | C17: 0.5 | D17: 2 | E17: 10 | F17: 0.5 | G17: 1 | K17: Nov | L17: 1 | M17: 2 | N17: 1 | O17: 1
A18: Dec | B18: 30 | C18: 0.5 | D18: 2 | E18: 10 | F18: 0.5 | G18: 2 | K18: Dec | L18: 1 | M18: 2 | N18: 1 | O18: 2
K19: Annual | L19: =AVERAGE(L7:L18) -> 1.021666667 | M19: =MAX(M7:M18) -> 2 | N19: =AVERAGE(N7:N18) -> 1.015833333 | O19: =MAX(O7:O18) -> 2
J21: =+A6 -> 2021 | K21: mg/Nm3 | L21: Monthly 1/2 hourly mean | M21: Monthly 1/2 hourly maximum | N21: Monthly daily mean | O21: Monthly daily maximum
J22: A2 | K22: Jan | L22: 1.8 | M22: 6.5 | N22: 1.8 | O22: 5.6
K23: Feb | L23: 1.5 | M23: 10.2 | N23: 1.49 | O23: 3.2
K24: Mar | L24: 0.9 | M24: 1.9 | N24: 0.9 | O24: 1.5
K25: Apr | L25: 0 | M25: 1 | N25: 0 | O25: 0
K26: May | L26: 0 | M26: 1 | N26: 0 | O26: 0
K27: Jun | L27: 0 | M27: 2 | N27: 0 | O27: 0
K28: Jul | L28: 0.06 | M28: 1 | N28: 0.06 | O28: 1
K29: Aug | L29: 0.13 | M29: 2 | N29: 0.13 | O29: 1
K30: Sep | L30: 0.07 | M30: 1 | N30: 0.03 | O30: 1
K31: Oct | L31: 0 | M31: 1 | N31: 0 | O31: 0
K32: Nov | L32: 0 | M32: 1 | N32: 0 | O32: 0
K33: Dec | L33: 0 | M33: 1 | N33: 0 | O33: 0
K34: Annual | L34: =AVERAGE(L22:L33) -> 0.3716666667 | M34: =MAX(M22:M33) -> 10.2 | N34: =AVERAGE(N22:N33) -> 0.3675 | O34: =MAX(O22:O33) -> 5.6
A48: Comments :

Sheet CO 95% 10 min
A1: =+'Cover Page'!$B$29 -> Annual Performance Report 2021 | E1: =+'Cover Page'!$B$33 -> Ardley Energy Recovery Facility
A3: Monitoring of Carbon Monoxide (10-minute avg) | E3: Whole Installation | J3: =+A3 -> Monitoring of Carbon Monoxide (10-minute avg) | O3: Per Combustion Line | Q3: Notes: | S3: Notes:
S4: User to add logic to complete Whole installation, Table A5:H18. From the data in Per Combustion Line, Table K6:Q79, subject to No. of lines installed
A5: mg/Nm3 | B5: 10-minute Reference Periods | F5: Daily Reference Periods
A6: =+'Cover Page'!C39 -> 2021 | B6: 95%ile 10-min avg CO ELV | C6: 95%ile 10-min avg maximum | D6: Monthly CO 10-min avg mean | E6: 10-min avg maximum | F6: Daily CO ELV | G6: Monthly daily mean | H6: Highest daily maximum | K6: =+A6 -> 2021 | L6: mg/Nm3 | M6: 95%ile 10-min avg maximum | N6: Monthly CO 10-min avg mean | O6: 10-min avg maximum | P6: Monthly daily mean | Q6: Monthly daily maximum
A7: Jan | B7: 150 | C7: =MAX(N22,M7) -> 5 | D7: =AVERAGE(N7,N22) -> 0.5 | E7: =MAX(O7,O22) -> 95 | F7: 50 | G7: =AVERAGE(P7,P22) -> 0.805 | H7: =MAX(Q7,Q22) -> 2 | K7: A1 | L7: Jan | M7: 5 | N7: 0 | O7: 95 | P7: 0.19 | Q7: 1
A8: Feb | B8: =+B7 -> 150 | C8: =MAX(N23,M8) -> 3 | D8: 1 | E8: =MAX(O8,O23) -> 64 | F8: =+F7 -> 50 | G8: 1.555 | H8: 5 | L8: Feb | M8: 3 | N8: 0 | O8: 64 | P8: 0.68 | Q8: 2
A9: Mar | B9: =+B8 -> 150 | C9: =MAX(N24,M9) -> 6 | D9: 2.5 | E9: 290 | F9: =+F8 -> 50 | G9: 2.095 | H9: 5 | L9: Mar | M9: 6 | N9: 2 | O9: 290 | P9: 1.74 | Q9: 5 | S9: Whole Installation table A5:H18:
A10: Apr | B10: 150 | C10: =MAX(M10,M25) -> 10 | D10: 3 | E10: 361 | F10: 50 | G10: 3.2 | H10: 6 | L10: Apr | M10: 8 | N10: 2 | O10: 361 | P10: 2.1 | Q10: 5 | S10: Mean: for 10-min and daily periods use average of all operational combustion lines.
A11: May | B11: 150 | C11: 9 | D11: 3.5 | E11: 172 | F11: 50 | G11: 3.335 | H11: 6 | L11: May | M11: 9 | N11: 3 | O11: 63 | P11: 2.84 | Q11: 4
A12: Jun | B12: 150 | C12: 11 | D12: 2 | E12: 131 | F12: 50 | G12: 2.12 | H12: 6 | L12: Jun | M12: 11 | N12: 2 | O12: 131 | P12: 2.07 | Q12: 6
A13: Jul | B13: 150 | C13: 15 | D13: 4 | E13: 408 | F13: 50 | G13: 3.955 | H13: 14 | L13: Jul | M13: 15 | N13: 6 | O13: 350 | P13: 5.94 | Q13: 14 | S13: Maximum: for 10-min and daily periods use the highest of all operational combustion lines in any month.
A14: Aug | B14: 150 | C14: 8 | D14: 1.5 | E14: 268 | F14: 50 | G14: 1.555 | H14: 4 | L14: Aug | M14: 6 | N14: 1 | O14: 142 | P14: 1.27 | Q14: 3
A15: Sep | B15: 150 | C15: 5 | D15: 1 | E15: 144 | F15: 50 | G15: 1.3 | H15: 3 | L15: Sep | M15: 5 | N15: 1 | O15: 144 | P15: 1.17 | Q15: 3
A16: Oct | B16: 150 | C16: 12 | D16: 1 | E16: 464 | F16: 50 | G16: 1.04 | H16: 5 | L16: Oct | M16: 8 | N16: 1 | O16: 464 | P16: 0.78 | Q16: 5
A17: Nov | B17: 150 | C17: 9 | D17: 0.5 | E17: 328 | F17: 50 | G17: 0.665 | H17: 4 | L17: Nov | M17: 9 | N17: 0 | O17: 328 | P17: 0.4 | Q17: 3
A18: Dec | B18: 150 | C18: 28 | D18: 7 | E18: 286 | F18: 50 | G18: 6.92 | H18: 27 | L18: Dec | M18: 4 | N18: 0 | O18: 286 | P18: 0.26 | Q18: 2
L19: Annual | M19: =AVERAGE(M7:M18) -> 7.416666667 | N19: =AVERAGE(N7:N18) -> 1.5 | O19: =MAX(O7:O18) -> 464 | P19: =AVERAGE(P7:P18) -> 1.62 | Q19: =MAX(Q7:Q18) -> 14
K21: =+A6 -> 2021 | L21: mg/Nm3 | M21: 95%ile 10-min avg maximum | N21: Monthly CO 10-min avg mean | O21: 10-min avg maximum | P21: Monthly daily mean | Q21: Monthly daily maximum
K22: A2 | L22: Jan | M22: 5 | N22: 1 | O22: 87 | P22: 1.42 | Q22: 2
L23: Feb | M23: 6 | N23: 2 | O23: 39 | P23: 2.43 | Q23: 5
L24: Mar | M24: 6 | N24: 3 | O24: 10 | P24: 2.45 | Q24: 4
L25: Apr | M25: 10 | N25: 4 | O25: 145 | P25: 4.3 | Q25: 6
L26: May | M26: 7 | N26: 4 | O26: 172 | P26: 3.83 | Q26: 6
L27: Jun | M27: 8 | N27: 2 | O27: 73 | P27: 2.17 | Q27: 4
L28: Jul | M28: 9 | N28: 2 | O28: 408 | P28: 1.97 | Q28: 5
L29: Aug | M29: 8 | N29: 2 | O29: 268 | P29: 1.84 | Q29: 4
L30: Sep | M30: 3 | N30: 1 | O30: 115 | P30: 1.43 | Q30: 2
L31: Oct | M31: 12 | N31: 1 | O31: 193 | P31: 1.3 | Q31: 4
L32: Nov | M32: 7 | N32: 1 | O32: 101 | P32: 0.93 | Q32: 4
L33: Dec | M33: 28 | N33: 14 | O33: 276 | P33: 13.58 | Q33: 27
L34: Annual | M34: =AVERAGE(M7:M33) -> 8.216666667 | N34: =AVERAGE(N7:N33) -> 2.26 | O34: =MAX(O22:O33) -> 408 | P34: =AVERAGE(P22:P33) -> 3.1375 | Q34: =MAX(Q22:Q33) -> 27
A48: Comments :
A49: Environment Agency explanatory note: The 10-minute average ELV is based on the “95th percentile”. In this case this means that 95% of the 10 minute averages in the relevant 24-hour period (i.e. 137) must be below 150 mg/Nm3, and 5% (i.e. 7) are allowed to be any value above 150 mg/Nm3. Whilst we expect operators to minimise CO emissions at all times, it is perfectly acceptable for the value of the maximum 10-minute average to be above 150 mg/Nm3, provided the 95th percentile ELV has been met for that period.
